Cogmind - Beta 16.1 @@@ ROGUE MODE // 2026.03.15 @ 12:57:39 Player: DS-RVS Result: Destroyed by Y-54 Guardian with Gatling Laser Performance ------------- Evolutions (3) 1500 Regions Visited (7) 1400 Robots Destroyed (30) 150 Value Destroyed (1028) 1028 Prototype IDs (25) 500 Alien Tech Used (0) 0 Bonus (340) 340 TOTAL SCORE: 4918 Bonus ------- Follower Combat Kills 40 Aligned with FarCom 300 Cogmind --------- Core Integrity 0/700 Matter 300/300 Energy 48/100 System Corruption 12% Temperature Cool (8) Movement Flying (34) Location -7/Storage Parts ------- > --- POWER (2) -------- (None) > --- PROPULSION (4) --- Xenon Bombardment Thruster Xenon Bombardment Thruster Cooled VTOL Module > --- UTILITY (4) ------ Improved Heat Sink Improved Terrain Scan Processor System Shield > --- WEAPON (3) ------- Heavy Particle Cannon > --- INVENTORY (5) ---- Improved Terrain Scanner Advanced Terrain Scan Processor Remote Datajack Peak State ------------ > --- POWER ------------ Light Deuterium Engine Micro Nuclear Core > --- PROPULSION ------- Flying Fortress v7 > --- UTILITY ---------- Medium Storage Unit Improved Terrain Scan Processor Light Armor Plating System Shield > --- WEAPON ----------- Advanced Beam Rifle Assault Rifle Remote Datajack > --- INVENTORY -------- Improved Ion Engine Advanced Treads Xenon Bombardment Thruster Xenon Bombardment Thruster Cryofiber Web Advanced Terrain Scan Processor Heavy Particle Cannon Assault Cannon Mini Grenade Launcher Mini Grenade Launcher [Rating: 59] Favorites ----------- Power Ion Engine Engine Ion Engine Power Core Micro Nuclear Core Propulsion Advanced Treads Treads Advanced Treads Flight Unit Flying Fortress v7 Utility Medium Storage Unit Device Seismic Detector Storage Medium Storage Unit Processor Improved Terrain Scan Processor Hackware System Shield Protection Light Armor Plating Weapon Assault Rifle Energy Gun Medium Laser Energy Cannon Heavy Particle Cannon Ballistic Gun Assault Rifle Ballistic Cannon Assault Cannon Launcher Mini Grenade Launcher Special Weapon Remote Datajack Slashing Weapon Axe Build | -11 -10 -10 -10 -9 -8 -7 -7 ------- Run | Yrd Mat Min Exi Min Mat Fac Sto Slots Evolved 6 | . . . . . 4 2 . Power 1 | . . . . . . 1 . Propulsion 2 | . . . . . 2 . . Utility 2 | . . . . . 1 1 . Weapon 1 | . . . . . 1 . . Parts Attached 45 | 8 1 3 1 . 5 21 6 Power 9 | 1 . 1 . . 2 5 . Engine 7 | 1 . 1 . . 2 3 . Core 2 | . . . . . . 2 . Reactor . | . . . . . . . . Propulsion 13 | 2 . 1 . . 1 6 3 Treads 9 | 2 . 1 . . . 6 . Leg . | . . . . . . . . Wheel . | . . . . . . . . Hover . | . . . . . . . . Flight 4 | . . . . . 1 . 3 Utility 8 | 2 1 1 1 . . 3 . Device 3 | 1 . 1 . . . 1 . Storage 2 | 1 1 . . . . . . Processor 1 | . . . . . . 1 . Hackware 1 | . . . . . . 1 . Protection 1 | . . . 1 . . . . Artifact . | . . . . . . . . Weapon 15 | 3 . . . . 2 7 3 Energy Gun 5 | 1 . . . . 2 1 1 Energy Cannon 2 | . . . . . . 1 1 Ballistic Gun 2 | 2 . . . . . . . Ballistic Cannon 2 | . . . . . . 1 1 Launcher 2 | . . . . . . 2 . Special Weapon 1 | . . . . . . 1 . Impact Weapon . | . . . . . . . . Slashing Weapon 1 | . . . . . . 1 . Piercing Weapon . | . . . . . . . . Special Melee Weapon . | . . . . . . . . Unidentified Prototypes 2 | . . . . . 1 . 1 Parts Lost 26 | . . . . . . 17 9 Power 7 | . . . . . . 5 2 Propulsion 8 | . . . . . . 5 3 Utility 1 | . . . . . . 1 . Weapon 10 | . . . . . . 6 4 Highest Loss Streak 9 | . . . . . . 9 9 To Critical Strikes . | . . . . . . . . Average Backups 7 | 4 7 8 7 7 9 8 5 Power . | . 1 1 1 1 1 . . Propulsion 2 | 2 4 1 1 1 1 2 1 Utility 1 | . . 2 2 1 1 1 2 Weapon 2 | . 1 3 3 3 4 2 . Tool/Special . | . . . . . . . . Unused Backups 10 | . . 3 1 . 1 3 2 Power 1 | . . . . . 1 . . Propulsion 4 | . . 3 1 . . . . Utility 2 | . . . . . . . 2 Weapon 3 | . . . . . . 3 . Tool/Special . | . . . . . . . . Average Slot Usage (%) 84 | . 100 100 100 100 62 71 56 Engine 10 | . 14 14 14 14 9 6 2 Core 2 | . . . . . . 5 2 Treads 17 | . 28 28 28 28 . 7 7 Flight 2 | . . . . . 8 4 3 Device 6 | . 14 14 10 . . 1 7 Storage 10 | . 14 14 14 14 9 7 4 Processor 2 | . . . . . . 6 7 Hackware 2 | . . . . . . 5 7 Protection 4 | . . . 3 14 9 3 . Energy Gun 11 | . 14 14 14 14 16 6 4 Ballistic Gun 9 | . 14 14 14 14 9 4 . Special Weapon 1 | . . . . . . 2 . Peak Build Rating 59 | 7 7 12 13 14 45 59 37 Average Rating 24 | 5 7 9 11 13 43 44 23 On Entrance 16 | . 7 7 10 13 14 45 33 Avg Prop Armor Cover (%) 6 | . . . . . . . 6 Naked Turns . | . . . . . . . . Heaviest Build 33 | 15 20 20 22 22 26 33 28 Greatest Support 66 | 40 40 42 42 42 50 66 66 Greatest Overweight (x) 1 | 1 . . . . . . . Average Overweight (x) . | . . . . . . . . Largest Inventory Capacity 10 | 8 10 10 10 10 10 10 10 Average Capacity 9 | 6 8 10 10 10 10 10 8 Most Carried 10 | 6 8 10 10 10 10 10 7 Average Carried 8 | 4 7 8 9 10 9 8 5 Final Capacity 10 | 8 10 10 10 10 10 10 5 Final Carried 10 | 6 8 9 10 10 10 7 3 Class Distribution -------------------- 60% | Mutant 29% | Skirmisher 9% | Scavenger-Mutant Dominant Class ---------------- Mutant | -10/Materials Mutant | -10/Mines Mutant | -10/Exiles Mutant | -9/Mines Skirmisher | -8/Materials Skirmisher | -7/Factory Mutant | -7/Storage Resources | -11 -10 -10 -10 -9 -8 -7 -7 ----------- Run | Yrd Mat Min Exi Min Mat Fac Sto Matter Collected 958 | 218 . 94 . . 84 448 114 Remotely . | . . . . . . . . Salvage Created 802 | 10 . 42 . . . 635 115 Parts 47 | 2 . 4 . . . 37 4 Haulers Intercepted . | . . . . . . . . Recyclers Shooed . | . . . . . . . . Parts Field Recycled . | . . . . . . . . Retrieved Matter . | . . . . . . . . Parts Self-Destructed . | . . . . . . . . Prevented . | . . . . . . . . Parts Restored . | . . . . . . . . Kills | -11 -10 -10 -10 -9 -8 -7 -7 ------- Run | Yrd Mat Min Exi Min Mat Fac Sto Combat Hostiles Destroyed 21 | . . 3 . . . 15 3 Melee 5 | . . . . . . 5 . Guns 5 | . . 3 . . . 2 . Cannons 6 | . . . . . . 3 3 AOE 5 | . . . . . . 5 . Classes Destroyed 9 | 1 . 1 . . . 6 1 Worker 2 | . . . . . . 2 . Builder 4 | . . . . . . 4 . Tunneler 2 | 1 . . . . . 1 . Mechanic 1 | . . . . . . 1 . Swarmer 3 | . . 3 . . . . . Grunt 10 | . . . . . . 8 2 Duelist 1 | . . . . . . 1 . Sentry 1 | . . . . . . . 1 Programmer 6 | . . . . . . 6 . Best Kill Streak 17 | 1 . 3 . . . 17 2 Combat Bots Only 5 | . . 3 . . . 5 2 Max Kills in Single Turn 4 | 1 . 1 . . . 4 1 Gunslinging . | . . . . . . . . Exploded 2 | . . . . . . 2 . Melee 1 | . . . . . . 1 . Uniques/NPCs Destroyed . | . . . . . . . . Combat | -11 -10 -10 -10 -9 -8 -7 -7 -------- Run | Yrd Mat Min Exi Min Mat Fac Sto Hostile Shots Fired 693 | . . 30 . . 88 335 240 Missed 306 | . . 9 . . 53 147 97 Hits 387 | . . 21 . . 35 188 143 Projectile 387 | . . 21 . . 35 188 143 Critical Strikes 14 | . . . . . 2 10 2 Damage Taken 4332 | . . 196 . . 480 2706 950 Core 834 | . . 24 . . 104 487 219 Absorbed by Shields . | . . . . . . . . Regen/Repaired (Parts) 76 | . . . . . . 76 . Core Remaining (%) 90 | 100 . . . 90 81 . . Volleys Fired 62 | 2 3 8 . . . 31 18 Largest 3 | 2 2 2 . . . 3 2 Hottest 142 | 70 70 70 . . . 142 105 Shots Fired 111 | 4 6 16 . . . 55 30 Gun 66 | 4 6 16 . . . 22 18 Cannon 32 | . . . . . . 20 12 Launcher 13 | . . . . . . 13 . Special . | . . . . . . . . Kinetic 52 | 2 3 8 . . . 27 12 Thermal 38 | 2 3 8 . . . 15 10 Explosive 13 | . . . . . . 13 . Electromagnetic 8 | . . . . . . . 8 Robot Hit Streak 13 | 3 2 2 . . . 5 13 Robot Miss Streak 7 | . 4 5 . . . 7 2 Penetration Max . | . . . . . . . . Secondary Targets 2 | . . 2 . . . . . Max Gunslinging Chain 1 | . . 1 . . . . . Shots Hit Robots 77 | 3 2 5 . . . 43 24 Core Hits 52 | 1 1 3 . . . 40 7 Critical Kills . | . . . . . . . . Critical Parts Destroyed . | . . . . . . . . Critical Strikes 2 | . . . . . . 2 . Blast 1 | . . . . . . 1 . Sever 1 | . . . . . . 1 . Melee Attacks 21 | . . . . . . 21 . Impact . | . . . . . . . . Slashing 21 | . . . . . . 21 . Piercing . | . . . . . . . . Sneak Attacks 1 | . . . . . . 1 . Combat Hostiles . | . . . . . . . . Follow-up Attacks . | . . . . . . . . Damage Inflicted 2812 | 36 23 64 . . . 2176 513 Guns 504 | 36 23 64 . . . 179 202 Cannons 739 | . . . . . . 428 311 Explosions 1065 | . . . . . . 1065 . Melee 504 | . . . . . . 504 . Ramming . | . . . . . . . . Kinetic 691 | 11 11 26 . . . 332 311 Thermal 501 | 25 12 38 . . . 275 151 Explosive 1065 | . . . . . . 1065 . Electromagnetic 51 | . . . . . . . 51 Impact . | . . . . . . . . Slashing 504 | . . . . . . 504 . Piercing . | . . . . . . . . Highest Corruption 12 | . . . . . . 12 12 Average Corruption 9 | . . . . . . 8 12 Corruption Purged . | . . . . . . . . Corruption Blocked . | . . . . . . . . Effects 24 | . . . . . . 19 5 Message Errors 6 | . . . . . . 3 3 Matter Fused 8 | . . . . . . 8 . Heat Flow Errors 3 | . . . . . . 2 1 Energy Discharges 3 | . . . . . . 2 1 Data Loss (minor) 2 | . . . . . . 2 . Data Loss (major) 1 | . . . . . . 1 . Misdirections 1 | . . . . . . 1 . Overload Shots . | . . . . . . . . Overflow Damage 124 | . . . . . . 124 . Projectiles 7 | . . . . . . 7 . Explosions 25 | . . . . . . 25 . Melee 92 | . . . . . . 92 . Knockbacks 1 | . . . . . . 1 . Impact . | . . . . . . . . Kinetic 1 | . . . . . . 1 . Secondary . | . . . . . . . . Self-Inflicted Damage 145 | . . . . . . 145 . Shots 4 | . . . . . . 4 . Rammed . | . . . . . . . . Targets Rammed . | . . . . . . . . Kicked . | . . . . . . . . Crushed . | . . . . . . . . Highest Temperature 359 | 18 18 45 . . 39 359 244 Average Temperature 99 | 10 9 19 . . 21 123 133 Received Heat Transfer 1233 | . . . . . 252 771 210 Effects 2 | . . . . . . 2 . Shutdowns 1 | . . . . . . 1 . Interference 1 | . . . . . . 1 . Siege Activations . | . . . . . . . . Martial Activations . | . . . . . . . . Shielding Activations . | . . . . . . . . Robots Disrupted . | . . . . . . . . Combat Hostiles . | . . . . . . . . Robots Corrupted . | . . . . . . . . Combat Hostiles . | . . . . . . . . Parts Fried . | . . . . . . . . Impact Corruptions . | . . . . . . . . Robots Melted . | . . . . . . . . Combat Hostiles . | . . . . . . . . Parts Melted 1 | . . . . . . 1 . Heat Transferred 925 | 74 37 111 . . . 370 333 Parts Sabotaged . | . . . . . . . . Parts Stolen . | . . . . . . . . Parts Stripped . | . . . . . . . . Power Chain Reactions . | . . . . . . . . Alert | -11 -10 -10 -10 -9 -8 -7 -7 ------- Run | Yrd Mat Min Exi Min Mat Fac Sto Maximum Alert Level 1 | . . . . . . 1 . Low Security (%) 90 | 100 100 100 . 100 100 77 100 Level 1 9 | . . . . . . 22 . Level 2 . | . . . . . . . . Level 3 . | . . . . . . . . Level 4 . | . . . . . . . . Level 5 . | . . . . . . . . High Security . | . . . . . . . . Max Security . | . . . . . . . . Peak Influence 247 | 5 5 50 . . 181 247 103 Initial 81 | . 3 . . . . 81 81 Average 48 | . . 11 . . 53 97 46 Influence Increases 1073 | 5 5 70 . . 300 605 88 Destroy 0b10 Robot/C 480 | . . 60 . . 60 300 60 Destroy 0b10 Robot/NC 45 | 5 . . . . . 40 . Destroy Leader 100 | . . 10 . . 20 60 10 Allied During Kill 6 | . . . . . 6 . . Successful Hack 47 | . 5 . . . 4 38 . Destroy Structure 50 | . . . . . . 47 3 Partial Spotted 45 | . . . . . 30 15 . Lose Combat Pursuer 300 | . . . . . 180 105 15 Influence Decreases 1064 | . 10 70 . . 119 605 260 Entered New Map 202 | . 2 . . . . 100 100 Time Decay 559 | . 8 70 . . 74 337 70 Lost Part 258 | . . . . . . 168 90 Lost Ally 45 | . . . . . 45 . . Squads Dispatched 5 | . . . . . 1 4 . Investigation . | . . . . . . . . Extermination 2 | . . . . . . 2 . Reinforcement 3 | . . . . . 1 2 . Assault . | . . . . . . . . Garrison . | . . . . . . . . Intercept . | . . . . . . . . Searches Triggered . | . . . . . . . . Construction Impeded 1 | . . . . . . 1 . Haulers Reinforced . | . . . . . . . . Active Scanning Responses . | . . . . . . . . Cargo Convoy Interrupts . | . . . . . . . . Stealth | -11 -10 -10 -10 -9 -8 -7 -7 --------- Run | Yrd Mat Min Exi Min Mat Fac Sto Distress Signals 2 | . . . . . 1 1 . Communications Jammed . | . . . . . . . . Distress Signals . | . . . . . . . . Times Spotted 60 | . 4 3 . . 16 32 5 Peak Tracking Total 10 | . 2 3 . . 10 6 5 Tactical Retreats 7 | . . . . . 2 4 1 Traps | -11 -10 -10 -10 -9 -8 -7 -7 ------- Run | Yrd Mat Min Exi Min Mat Fac Sto Traps Triggered 3 | . . . . . . 3 . Indirectly . | . . . . . . . . Trap Hack Attempts . | . . . . . . . . Triggered . | . . . . . . . . Disarmed . | . . . . . . . . Reprogrammed . | . . . . . . . . Reused . | . . . . . . . . Traps Extracted . | . . . . . . . . Installed . | . . . . . . . . Triggered . | . . . . . . . . Machines | -11 -10 -10 -10 -9 -8 -7 -7 ---------- Run | Yrd Mat Min Exi Min Mat Fac Sto Machines Disabled . | . . . . . . . . Max in Single Turn . | . . . . . . . . Machines Repaired . | . . . . . . . . Machines Dismantled . | . . . . . . . . Machines Sabotaged . | . . . . . . . . Overloaded Fab Kills . | . . . . . . . . Hacking | -11 -10 -10 -10 -9 -8 -7 -7 --------- Run | Yrd Mat Min Exi Min Mat Fac Sto Machines Accessed 14 | . 5 1 2 . 2 4 . Terminals 8 | . 3 . . . 2 3 . Fabricators . | . . . . . . . . Repair Stations 2 | . 1 . . . . 1 . Recycling Units 1 | . 1 . . . . . . Scanalyzers . | . . . . . . . . Garrison Access . | . . . . . . . . Total Hacks 27 | . 7 1 6 . 6 7 . Successful 17 | . 4 1 6 . 3 3 . Failed 10 | . 3 . . . 3 4 . Catastrophic 1 | . . . . . . 1 . Database Lockouts . | . . . . . . . . Manual 5 | . 2 . 1 . 2 . . Terminals 15 | . 5 . . . 6 4 . Fabricators . | . . . . . . . . Repair Stations 4 | . 1 . . . . 3 . Recycling Units 1 | . 1 . . . . . . Scanalyzers . | . . . . . . . . Garrison Access . | . . . . . . . . Terminal Hacks 11 | . 1 1 6 . 2 1 . Record 5 | . . . 5 . . . . Open Door 1 | . . 1 . . . . . Locate Traps 2 | . . . . . 2 . . Zone Layout 2 | . 1 . . . . 1 . Proto ID Catalog 1 | . . . 1 . . . . Fabricator Hacks . | . . . . . . . . Repair Station Hacks 2 | . . . . . . 2 . Scan Component 1 | . . . . . . 1 . Repair 1 | . . . . . . 1 . Recycling Unit Hacks 1 | . 1 . . . . . . Report Inventory 1 | . 1 . . . . . . Scanalyzer . | . . . . . . . . Garrison Access Hacks . | . . . . . . . . Unauthorized Hacks 3 | . 2 . . . 1 . . Terminals 3 | . 2 . . . 1 . . Skim 3 | . 2 . . . 1 . . Fabricators . | . . . . . . . . Repair Stations . | . . . . . . . . Recycling Units . | . . . . . . . . Scanalyzers . | . . . . . . . . Garrison Access . | . . . . . . . . Data Cores Recovered . | . . . . . . . . Used . | . . . . . . . . Hacking Detections 11 | . 5 . . . 2 4 . Full Trace Events . | . . . . . . . . Feedback Events . | . . . . . . . . Feedback Blocked . | . . . . . . . . Robot Schematics Acquired . | . . . . . . . . Robots Built . | . . . . . . . . Authchips . | . . . . . . . . Time . | . . . . . . . . Total Robot Build Rating . | . . . . . . . . Part Schematics Acquired . | . . . . . . . . Parts Built . | . . . . . . . . Authchips . | . . . . . . . . Time . | . . . . . . . . Total Part Build Rating . | . . . . . . . . Part Studies Acquired . | . . . . . . . . Parts Repaired 1 | . . . . . . 1 . Time 13 | . . . . . . 13 . Parts Recycled . | . . . . . . . . Recycled Matter . | . . . . . . . . Retrieved Matter . | . . . . . . . . Retrieved Components . | . . . . . . . . Parts Scanalyzed . | . . . . . . . . Part Schematics Acquired . | . . . . . . . . Parts Damaged . | . . . . . . . . Bothacking | -11 -10 -10 -10 -9 -8 -7 -7 ------------ Run | Yrd Mat Min Exi Min Mat Fac Sto Used RIF Installer . | . . . . . . . . Robots Hacked . | . . . . . . . . Non-combat . | . . . . . . . . Combat . | . . . . . . . . Robot Hacks Applied . | . . . . . . . . Relay Couplers Released . | . . . . . . . . Fabnet Peak Effective % . | . . . . . . . . Robots Rewired . | . . . . . . . . Allies Hacked . | . . . . . . . . Hacks Repelled . | . . . . . . . . Allies | -11 -10 -10 -10 -9 -8 -7 -7 -------- Run | Yrd Mat Min Exi Min Mat Fac Sto Total Allies 3 | . . . . 3 . . . Largest Group 3 | . . . . 3 3 . . Highest-Rated Group 40 | . . . . 40 40 . . Highest-Rated Ally 16 | . . . . 16 16 . . Total Orders . | . . . . . . . . Ally Attacks 22 | . . . . . 22 . . Total Damage 147 | . . . . . 147 . . Kills 3 | . . . . . 3 . . Allies Corrupted . | . . . . . . . . Allies Melted . | . . . . . . . . Intel | -11 -10 -10 -10 -9 -8 -7 -7 ------- Run | Yrd Mat Min Exi Min Mat Fac Sto Active Infowar (turns) 982 | 11 325 321 325 . . . . Seismic 982 | 11 325 321 325 . . . . Robot Analysis Total . | . . . . . . . . Derelict Logs Recovered . | . . . . . . . . Drone Launches . | . . . . . . . . Drone Recoveries . | . . . . . . . . Exploration | -11 -10 -10 -10 -9 -8 -7 -7 ------------- Run | Yrd Mat Min Exi Min Mat Fac Sto Turns Passed 2757 | 115 325 322 422 274 206 935 158 Spaces Moved 2422 | 61 187 183 276 180 334 1102 99 Core 42 | 5 . . . . . . 37 Treads 1065 | 56 187 183 276 180 3 164 16 Legs . | . . . . . . . . Wheels . | . . . . . . . . Hover . | . . . . . . . . Flight 1315 | . . . . . 331 938 46 Fastest Speed 32 | 50 160 152 152 152 50 50 32 Average Speed 95 | 153 160 153 152 152 50 64 58 Slowest Speed 160 | 160 160 160 152 152 152 145 145 Overloaded Moves . | . . . . . . . . Propulsion Burnouts . | . . . . . . . . Robots Hopped 20 | . . . . . 9 11 . Potential Cave-ins . | . . . . . . . . Cave-ins Triggered . | . . . . . . . . Exploration Rate (%) 34 | 4 47 38 52 49 37 38 11 Regions Visited 7 Branch Regions 4 Pre-discovered Areas 1 | . . . 1 . . . . Known Exits Taken . | . . . . . . . . Unknown Exits Taken 7 | 1 1 1 1 1 1 1 . Scrap Searched 1 | . . 1 . . . . . Spaces Dug . | . . . . . . . . Terrain Destroyed 61 | . . . . . . 59 2 Melee . | . . . . . . . . Projectile 4 | . . . . . . 2 2 AOE 57 | . . . . . . 57 . Terrain Rammed . | . . . . . . . . Walls Destroyed . | . . . . . . . . Machines Disabled . | . . . . . . . . Actions | -11 -10 -10 -10 -9 -8 -7 -7 --------- Run | Yrd Mat Min Exi Min Mat Fac Sto Total 2706 | 75 206 209 280 181 360 1227 168 Wait 119 | . 15 5 . . 23 32 44 Move 2376 | 60 186 182 275 179 315 1080 99 Hop 19 | . . . . . 9 10 . Pick Up 27 | 5 1 5 1 1 4 10 . Fast Attach 26 | 7 . . . . 1 16 2 Attach 12 | . . . . . 2 6 4 Detach 1 | . . . . . 1 . . Swap 11 | 1 1 4 1 . 2 2 . Drop 20 | . . 5 3 1 3 7 1 Fire 62 | 2 3 8 . . . 31 18 Melee 21 | . . . . . . 21 . Ram . | . . . . . . . . Kick . | . . . . . . . . Crush . | . . . . . . . . Escape Stasis 12 | . . . . . . 12 . Rewire . | . . . . . . . . Trap . | . . . . . . . . Miscellaneous . | . . . . . . . . Route ------- -11/Scrapyard -10/Materials -10/Mines (discovered 2 exits: [*Mat] / *Exi) -10/Exiles -9/Mines -8/Materials -7/Factory -7/Storage History --------- Turn | Location | Event 23 | -11/Scrapyard | Discovered new exit (range 14) 116 | -11/Scrapyard | Entered Materials 196 | -10/Materials | Discovered new exit (range 16) 301 | -10/Materials | Build established: Mutant 441 | -10/Materials | Entered Mines 470 | -10/Mines | Discovered new exit (range 13) 503 | -10/Mines | Met a Derelict who couldn't figure out how to use a Trap Extractor 748 | -10/Mines | Deemed a non-threat by the Exiles lab entrance 750 | -10/Mines | Discovered new exit (range 5) 763 | -10/Mines | Entered Exiles 783 | -10/Exiles | Discovered new exit (range 15) 806 | -10/Exiles | Met 8R-AWN 827 | -10/Exiles | Met EX-HEX 879 | -10/Exiles | Met EX-BIN 899 | -10/Exiles | Aligned with FarCom system 900 | -10/Exiles | Given EX-Vault access code 940 | -10/Exiles | Opened EX-Vault 952 | -10/Exiles | Found Flying Fortress v7 985 | -10/Exiles | Warned to stay clear of 0b10 Research branches 1043 | -10/Exiles | Met EX-DEC 1055 | -10/Exiles | Learned location of Zion (-6) 1185 | -10/Exiles | Left Exiles lab with Flying Fortress v7 1185 | -10/Exiles | Entered Mines 1195 | -9/Mines | Assisted by bots powering up and referring to "LRC-V3" 1265 | -9/Mines | A weapon hastily lodged in a ceiling crevice suddenly fell to the ground 1448 | -9/Mines | Discovered new exit (range 6) 1459 | -9/Mines | Entered Materials 1459 | -8/Materials | Accompanied by 3 allies 1459 | -8/Materials | Evolved 4 slots: Propulsion x2, Utility x1, Weapon x1 1657 | -8/Materials | Discovered new exit (range 16) 1665 | -8/Materials | Entered Factory 1665 | -7/Factory | Evolved 2 slots: Power x1, Utility x1 1772 | -7/Factory | Build established: Skirmisher 1773 | -7/Factory | Repaired Lgt. Armor Plating 2267 | -7/Factory | System corruption reached 10% 2274 | -7/Factory | Lost 6 parts (2p1n3w) 2325 | -7/Factory | Core integrity fell below 50% 2392 | -7/Factory | Lost 9 parts (2p4n3w) 2584 | -7/Factory | Discovered new exit (range 5) 2600 | -7/Factory | Entered Storage 2645 | -7/Storage | Core integrity fell below 20% 2725 | -7/Storage | Lost 9 parts (2p3n4w) 2758 | -7/Storage | Destroyed by Y-54 Guardian with Gatling Laser Last Messages --------------- 02657_ R-06 Scavenger destroyed. 02657_ Mic. Nuclear Core destroyed. 02659_ A-02 Transporter destroyed. 02661_ Slug penetrates Y-54 Guardian. 02661_ Y-54 Guardian destroyed. 02661_ Gauss Cannon destroyed. 02670_ 9DTMJHSJ O>2|424,< SY GM 02681_ Adv. Treads destroyed. 02694_ Arc Projector destroyed. 02695_ Dropped Med. Storage Unit. 02696_ Acquired 20 matter. 02696_ Acquired 54 matter. 02698_ System corrupted: Energy discharge (-2). 02716_ Acquired Hvy. Particle Cannon. 02718_ H6JY3J Q:U%W%EURT5MJV5X5P